bitfinex/quotes_SOLUSD_20260304
["timestamp","ask_amount","ask_price","bid_price","bid_amount"]
[1772594381148,3.50866468,86.789,86.761,3.51132735]
[1772594381753,3.50866468,86.797,86.762,3.51132735]
[1772594382468,3.50866468,86.793,86.762,3.51132735]
[1772594382661,3.50866468,86.789,86.752,3.51132735]
[1772594382867,3.50866468,86.779,86.752,3.51132735]
[1772594383460,3.50866468,86.789,86.754,3.51132735]
[1772594384270,3.50866468,86.813,86.78,5.4597471]
[1772594384571,3.50866468,86.809,86.77,1.83583559]
[1772594384772,3.50866468,86.799,86.77,1.83583559]
[1772594384968,189.99147915,86.846,86.791,3.51132735]
[1772594384969,3.50866468,86.829,86.791,3.51132735]
[1772594385170,3.50866468,86.829,86.8,1.83583559]
[1772594386161,11.51702215,86.828,86.801,11.5206046]
[1772594386365,11.51702215,86.828,86.802,3.51132735]
[1772594386573,11.51611973,86.835,86.811,3.51132735]
[1772594387573,3.50866468,86.85,86.821,3.51132735]
[1772594387772,3.50866468,86.845,86.812,3.51132735]
[1772594387964,3.50866468,86.845,86.82,1.83583559]
[1772594388365,3.50866468,86.845,86.821,11.51795072]
[1772594388572,11.51490028,86.844,86.82,5.32224469]
[1772594388765,15.02309479,86.844,86.82,5.32224469]
[1772594389173,3.50819451,86.843,86.81,1.83583559]
[1772594389561,3.50819451,86.843,86.81,5.32224469]
[1772594389955,3.50819451,86.843,86.811,3.4864091]
[1772594390778,3.50819451,86.841,86.811,3.4864091]
[1772594391871,3.50819451,86.841,86.812,11.51914481]
[1772594392068,3.50819451,86.841,86.82,1.83583559]
[1772594392269,3.50819451,86.848,86.821,3.4864091]
[1772594392578,3.50819451,86.857,86.831,3.4864091]
[1772594392792,11.51304427,86.858,86.84,1.83583559]
[1772594392984,11.51228739,86.864,86.841,3.4864091]
[1772594394080,11.51162942,86.869,86.85,1.83583559]
[1772594394383,11.51162942,86.869,86.841,3.4864091]
[1772594395470,3.50819451,86.868,86.841,3.4864091]
[1772594395984,103.76802863,86.9,86.84,5.45491997]
[1772594395985,3.50819451,86.898,86.861,3.4864091]
[1772594396187,3.50819451,86.898,86.84,40.30391967]
[1772594396188,0.2,86.9,86.89,5.45491997]
[1772594396483,6.00963001,86.926,86.891,3.43319252]
[1772594396668,3.70819451,86.93,86.91,5.45491997]
[1772594397083,3.50819451,86.919,86.847,3.43319252]
[1772594397284,3.50819451,86.919,86.846,28.78658775]
[1772594397285,3.50819451,86.899,86.861,3.43319252]
[1772594397587,3.50819451,86.909,86.871,3.43365133]
[1772594398279,3.50819451,86.909,86.88,5.45491997]
[1772594398883,15.01461509,86.908,86.88,5.45491997]
[1772594399390,3.50819451,86.907,86.88,5.45491997]
[1772594400082,11.50642058,86.908,86.881,14.94454963]
[1772594400392,15.01183541,86.929,86.901,3.43499638]
[1772594400585,15.01183541,86.929,86.91,5.45491997]
[1772594400975,0.2,86.93,86.92,5.45491997]
[1772594401175,0.2,86.93,86.91,5.45491997]
[1772594401782,11.5036409,86.929,86.91,5.45491997]
[1772594402675,0.2,86.93,86.91,5.45491997]
[1772594402993,0.2,86.93,86.92,5.45491997]
[1772594403294,0.2,86.93,86.912,11.50581262]
[1772594403493,0.2,86.93,86.92,5.45491997]
[1772594403685,3.50819451,86.966,86.931,3.2365949]
[1772594403990,11.49887885,86.965,86.95,5.45491997]
[1772594404194,11.6982237,86.97,86.95,5.45491997]
[1772594404973,0.2,86.97,86.95,5.45491997]
[1772594405172,11.69833498,86.97,86.95,5.45491997]
[1772594405487,0.2,86.97,86.95,5.45491997]
[1772594406276,0.2,86.98,86.915,3.69383402]
[1772594406277,0.2,86.98,86.96,5.45491997]
[1772594406599,0.2,86.98,86.97,5.45491997]
[1772594407496,11.49504395,86.995,86.97,5.45491997]
[1772594407699,28.73308416,87.008,86.98,5.45491997]
[1772594407700,11.49332812,87.007,86.98,5.45491997]
[1772594407909,3.50819451,87.006,86.98,5.45491997]
[1772594408280,3.50819451,86.999,86.97,5.45491997]
[1772594409499,15.00271162,86.998,86.97,5.45491997]
[1772594409684,3.50819451,86.997,86.97,5.45491997]
[1772594410390,3.50819451,86.997,86.97,16.95308567]
[1772594410613,3.50819451,87.024,86.991,1.62679925]
[1772594410781,0.2,87.03,87.01,5.45491997]
[1772594410983,3.50819451,87.028,87.01,5.45491997]
[1772594411178,3.50819451,87.028,87.0,5.45491997]
[1772594411380,3.50819451,87.028,86.97,40.24371014]
[1772594411381,11.49187524,87.018,86.98,5.45491997]
[1772594411688,3.50819451,87.017,86.98,5.45491997]
[1772594412088,3.50819451,87.009,86.97,5.45491997]
[1772594412280,3.50819451,87.009,86.98,5.45491997]
[1772594412482,11.49121167,87.024,87.0,5.45491997]
[1772594412684,3.50819451,87.028,87.0,5.45491997]
[1772594412895,11.49068679,87.027,87.0,5.45491997]
[1772594413610,11.49068679,87.027,86.99,6.88746631]
[1772594413813,5.45491997,87.01,86.973,11.49773827]
[1772594414103,5.45491997,87.01,86.98,5.45491997]
[1772594414479,5.45491997,87.02,86.981,2.43893732]
[1772594415003,3.50819451,87.019,86.981,2.43893732]
[1772594416100,3.50819451,87.017,86.982,11.49663148]
[1772594416282,3.70819451,87.03,87.001,2.44207786]
[1772594416487,2.50819451,87.028,86.991,0.28432314]
[1772594416980,2.50819451,87.028,86.99,5.45491997]
[1772594417804,0.2,87.03,87.001,3.44792841]
[1772594418010,0.2,87.03,87.01,5.45491997]
[1772594418304,0.2,87.03,87.003,3.31657524]
[1772594418482,3.46651438,87.029,86.99,8.77149521]
[1772594418684,3.46651438,87.019,86.99,8.77149521]
[1772594419087,3.46651438,87.019,86.982,3.31657524]
[1772594419508,3.46651438,87.027,87.0,5.45491997]
[1772594419712,0.2,87.03,87.001,3.31657524]
[1772594420017,11.49042273,87.029,87.002,11.49398864]
[1772594420214,11.49042273,87.029,87.003,3.44981269]
[1772594421504,15.13541685,87.029,87.003,3.44981269]
[1772594421807,3.64499412,87.009,86.98,5.45491997]
[1772594421990,9.09991409,87.02,86.982,3.44981269]
[1772594422196,9.09991409,87.02,86.981,11.49676366]
[1772594422197,3.64499412,87.028,86.991,3.44981269]
[1772594422406,3.64499412,87.028,86.981,40.23867281]
[1772594422407,3.64499412,87.019,86.981,11.49676366]
[1772594422797,9.09991409,87.01,86.981,11.49676366]
[1772594423002,3.64499412,87.01,86.981,11.49676366]
[1772594423195,3.64499412,87.01,86.982,3.44981269]
[1772594423605,3.64499412,87.01,86.981,11.49676366]
[1772594426588,3.64499412,86.999,86.961,3.44981269]
[1772594427713,3.64499412,86.999,86.97,5.45491997]
[1772594427893,3.64499412,86.999,86.961,3.44981269]
[1772594428300,3.64499412,86.999,86.97,5.45491997]
[1772594429727,11.49451711,86.998,86.971,11.49808556]
[1772594430010,5.65491997,87.03,86.991,3.73413583]
[1772594430218,0.2,87.03,87.01,5.45491997]
[1772594430793,3.64499412,87.029,86.977,1.14972923]
[1772594431002,3.64499412,86.983,86.924,3.44981269]
[1772594431203,3.64499412,86.959,86.925,11.50417026]
[1772594431598,3.64499412,86.959,86.926,0.28432314]
[1772594431797,3.64499412,86.959,86.928,0.28432314]
[1772594432117,3.64499412,86.949,86.924,3.44981269]
[1772594432702,11.4998045,86.958,86.924,3.44981269]
[1772594432703,3.64499412,86.939,86.924,3.44981269]
[1772594433809,3.68028421,86.929,86.901,0.28432314]
[1772594434115,2.68028421,86.929,86.885,3.69383402]
[1772594434314,5.45491997,86.91,86.88,5.45491997]
[1772594434622,5.45491997,86.91,86.878,0.28432314]
[1772594434819,5.45491997,86.91,86.877,11.51047279]
[1772594435118,5.45491997,86.92,86.89,5.45491997]
[1772594435324,5.45491997,86.93,86.89,5.45491997]
[1772594435924,3.64499412,86.919,86.88,5.45491997]
[1772594436416,3.64499412,86.909,86.88,5.45491997]
[1772594436604,3.64499412,86.909,86.876,11.62821618]
[1772594437005,3.64499412,86.899,86.876,11.62821618]
[1772594438218,15.1526387,86.899,86.876,11.62821618]
[1772594438418,3.64499412,86.898,86.876,11.62821618]
[1772594438722,3.64499412,86.933,86.89,5.45056564]
[1772594438919,3.64499412,86.933,86.9,5.45056564]
[1772594439221,3.64499412,86.929,86.89,5.45056564]
[1772594440302,3.64499412,86.918,86.881,11.50999643]
[1772594440701,3.64499412,86.918,86.89,5.45056564]
[1772594441114,3.64499412,86.927,86.9,5.45056564]
[1772594441440,5.45056564,86.92,86.88,5.45056564]
[1772594441740,40.26191365,86.931,86.876,11.62821618]
[1772594441741,3.64499412,86.899,86.876,11.62821618]
[1772594442532,3.64499412,86.897,86.876,11.62821618]
[1772594443747,3.64499412,86.897,86.844,3.44981269]
[1772594444036,3.64499412,86.879,86.833,3.44981269]
[1772594444220,3.64499412,86.889,86.841,3.44981269]
[1772594444542,3.64499412,86.879,86.843,3.44981269]
[1772594444714,3.64499412,86.879,86.851,3.44981269]
[1772594445234,15.15406326,86.888,86.851,3.44981269]
[1772594445413,3.64499412,86.887,86.851,3.44981269]
[1772594447238,11.50933406,86.886,86.852,11.51383963]
[1772594447430,15.15432818,86.886,86.852,14.96365232]
[1772594447633,15.15432818,86.886,86.853,3.44981269]
[1772594447838,3.64499412,86.859,86.83,0.2]
[1772594448037,3.64499412,86.859,86.83,5.65056564]
[1772594448333,3.64499412,86.859,86.83,0.2]
[1772594448521,3.64499412,86.859,86.83,9.09167053]
[1772594450040,3.4895439,86.869,86.831,3.44110489]
[1772594450241,1.43405237,86.884,86.841,3.44110489]
[1772594450242,3.4895439,86.878,86.841,3.44110489]
[1772594450434,3.4895439,86.869,86.832,3.44110489]
[1772594452271,15.00126282,86.868,86.834,3.44110489]
[1772594452627,3.4895439,86.867,86.834,3.44110489]
[1772594452929,3.4633729,86.867,86.834,3.44110489]
[1772594454744,4.61310213,86.867,86.835,14.95719863]
[1772594455243,3.4895439,86.865,86.835,14.95719863]
[1772594455550,3.4895439,86.864,86.835,14.95719863]
[1772594455730,1.14972923,86.863,86.835,14.95719863]
[1772594455937,4.63927313,86.863,86.835,14.95719863]
[1772594457738,3.4895439,86.862,86.835,14.95719863]
[1772594457942,4.63927313,86.861,86.835,14.95719863]
[1772594458140,3.4895439,86.859,86.83,0.2]
[1772594458339,3.4895439,86.849,86.82,0.2]
[1772594458540,3.4895439,86.839,86.82,0.2]
[1772594458740,3.4895439,86.839,86.804,11.52020644]
[1772594459230,3.4895439,86.839,86.811,3.44110489]
[1772594459430,3.4895439,86.839,86.804,11.52020644]
[1772594459431,3.4895439,86.851,86.821,3.44110489]
[1772594459635,1.14972923,86.855,86.831,3.44110489]
[1772594459836,1.14972923,86.859,86.831,3.44110489]
[1772594460031,1.14972923,86.859,86.832,11.51649161]
[1772594460235,1.14972923,86.859,86.833,3.44110489]
[1772594460447,3.4895439,86.887,86.851,3.44110489]
[1772594462238,3.77386704,86.885,86.84,8.89167053]
[1772594462436,3.4895439,86.869,86.841,3.44110489]
[1772594462842,3.4895439,86.885,86.851,3.44110489]
[1772594464850,3.4895439,86.909,86.871,3.44110489]
[1772594466364,3.4895439,86.909,86.87,5.45056564]
[1772594468458,3.4895439,86.899,86.86,5.45056564]
[1772594468658,3.4895439,86.899,86.862,3.44110489]
[1772594468864,3.4895439,86.899,86.87,5.45056564]
[1772594469243,14.99477392,86.917,86.881,3.44110489]
[1772594469448,3.4895439,86.916,86.89,5.45056564]
[1772594470756,14.99503777,86.915,86.891,11.50867178]
[1772594471143,3.4895439,86.914,86.89,5.45056564]
[1772594471751,3.4895439,86.909,86.87,5.45056564]
[1772594471951,3.4895439,86.899,86.861,3.44110489]
[1772594472145,3.4895439,86.899,86.86,5.45056564]
[1772594472756,3.4895439,86.897,86.861,11.51264664]
[1772594473260,3.4895439,86.897,86.871,3.44110489]
[1772594473761,3.4895439,86.897,86.861,11.51264664]
[1772594473966,3.4895439,86.897,86.86,5.45056564]
[1772594474272,3.4895439,86.897,86.86,16.9632868]
[1772594474464,3.4895439,86.897,86.86,5.45056564]
[1772594474866,3.4895439,86.869,86.836,11.51596112]
[1772594475072,40.2780335,86.896,86.801,11.5206046]
[1772594475073,3.4895439,86.849,86.801,11.5206046]
[1772594475363,3.4895439,86.829,86.8,3.44110489]
[1772594476171,3.4895439,86.829,86.8,8.89167053]
[1772594476559,3.4895439,86.829,86.801,11.5206046]
[1772594476751,3.4895439,86.829,86.792,3.44110489]
[1772594476957,3.4895439,86.827,86.794,3.44110489]
[1772594477156,3.4895439,86.827,86.8,5.45056564]
[1772594477786,3.4895439,86.827,86.794,3.44110489]
[1772594477991,3.4895439,86.819,86.787,11.52237232]
[1772594478269,11.51641692,86.833,86.81,5.45056564]
[1772594478453,11.51641692,86.833,86.809,3.56752365]
[1772594478652,3.59295705,86.834,86.809,3.56752365]
[1772594478858,3.59295705,86.834,86.81,5.45056564]
[1772594479179,3.59295705,86.834,86.809,3.56752365]
[1772594479377,3.59295705,86.834,86.804,11.52015443]
[1772594479581,3.59295705,86.829,86.801,3.56752365]
[1772594480161,3.59295705,86.829,86.802,11.52047187]
[1772594481672,15.21357322,86.828,86.801,3.56752365]
[1772594481879,3.69655107,86.819,86.781,15.11640211]
[1772594482568,3.69655107,86.819,86.755,3.69383402]
[1772594482569,3.69655107,86.799,86.763,3.59320488]
[1772594483073,3.69655107,86.812,86.778,3.59320488]
[1772594483273,3.69655107,86.812,86.762,28.81417399]
[1772594483274,3.69655107,86.812,86.78,9.04377052]
[1772594483675,3.69655107,86.809,86.78,9.04377052]
[1772594484057,3.69655107,86.809,86.782,3.59320488]
[1772594485687,15.21622667,86.808,86.782,3.59320488]
[1772594485873,3.69655107,86.815,86.783,11.52299413]
[1772594486056,3.69655107,86.813,86.783,11.52299413]
[1772594486782,16.96871591,86.82,86.784,3.59320488]
[1772594486963,3.69655107,86.819,86.78,5.45056564]
[1772594487365,3.69655107,86.789,86.756,3.59320488]
[1772594487566,3.69655107,86.789,86.762,3.59320488]
[1772594488281,11.52233027,86.788,86.762,3.59320488]
[1772594488487,11.52233027,86.788,86.76,5.65056564]
[1772594488488,3.69655107,86.787,86.76,5.65056564]
[1772594488789,3.69655107,86.787,86.762,3.59320488]
[1772594488995,11.52171389,86.793,86.762,3.59320488]
[1772594489464,3.69655107,86.792,86.762,3.59320488]
[1772594489665,3.69655107,86.789,86.762,3.59320488]
[1772594489975,3.69655107,86.789,86.76,0.2]
[1772594490180,3.69655107,86.779,86.76,0.2]
[1772594490476,3.69655107,86.769,86.74,0.2]
[1772594490795,3.69655107,86.759,86.72,5.55056564]
[1772594491080,3.69655107,86.739,86.711,11.53256218]
[1772594491285,3.69655107,86.739,86.712,3.59320488]
[1772594492388,5.45056564,86.75,86.713,11.53229619]
[1772594492573,92.17545598,86.791,86.713,11.53229619]
[1772594492574,3.69655107,86.787,86.741,3.59320488]
[1772594492892,3.69655107,86.785,86.751,3.59320488]
[1772594493085,3.69655107,86.779,86.741,3.59320488]
[1772594493386,3.69655107,86.769,86.734,3.59320488]
[1772594494285,3.69655107,86.769,86.74,5.45056564]
[1772594494488,5.45056564,86.78,86.741,3.59320488]
[1772594494685,15.22007634,86.779,86.741,3.59320488]
[1772594494990,3.69655107,86.778,86.75,5.45056564]
[1772594495777,3.69655107,86.778,86.74,5.45056564]
[1772594496081,3.69655107,86.778,86.741,3.59320488]
[1772594496591,3.69655107,86.798,86.761,3.59320488]
[1772594498377,3.66677353,86.798,86.761,3.59320488]
[1772594498977,0.28432314,86.797,86.61,25.55520645]
[1772594499276,5.46804132,86.78,86.741,3.59320488]
[1772594500192,5.46804132,86.77,86.741,3.59320488]
[1772594500388,3.69655107,86.769,86.731,3.59320488]
[1772594500586,3.69655107,86.759,86.721,3.59320488]
[1772594500892,3.69655107,86.759,86.73,5.46804132]
[1772594501192,3.69655107,86.759,86.731,3.59320488]
[1772594501575,15.22140441,86.769,86.733,3.59320488]
[1772594501872,3.69655107,86.749,86.714,3.59320488]
[1772594502085,3.69655107,86.739,86.71,0.1]
[1772594502295,3.69655107,86.739,86.711,11.53256218]
[1772594502602,3.69655107,86.739,86.712,3.59320488]
[1772594502774,3.69655107,86.752,86.712,3.59320488]
[1772594502979,3.69655107,86.766,86.731,3.59320488]
[1772594503182,3.69655107,86.778,86.741,3.59320488]
[1772594503992,11.52379086,86.777,86.751,3.59320488]
[1772594504694,11.52379086,86.777,86.742,11.52844066]
[1772594504695,15.21609397,86.809,86.771,3.59320488]
[1772594505685,5.46804132,86.8,86.771,3.59320488]
[1772594505879,5.46804132,86.8,86.773,3.59320488]
[1772594506096,11.5171548,86.827,86.791,3.59320488]
[1772594506396,5.46804132,86.82,86.791,3.59320488]
[1772594507603,5.46804132,86.82,86.755,3.69383402]
[1772594507604,5.46804132,86.84,86.801,3.59320488]
[1772594507788,3.69655107,86.839,86.801,3.59320488]
[1772594508705,3.77792106,86.829,86.801,3.59320488]
[1772594509988,11.51702215,86.828,86.801,3.59320488]
[1772594510184,28.78658775,86.846,86.803,3.82263877]
[1772594510185,11.5157702,86.838,86.803,3.82263877]
[1772594510987,3.77792106,86.858,86.821,3.82263877]
[1772594511195,11.51317683,86.857,86.821,3.82263877]
[1772594511390,15.29109789,86.857,86.821,3.82263877]
[1772594512109,15.29109789,86.857,86.823,3.82263877]
[1772594513299,3.77792106,86.856,86.823,3.82263877]
[1772594514792,5.46804132,86.86,86.825,3.82263877]
[1772594514991,11.51291173,86.859,86.825,3.82263877]
[1772594515811,3.77792106,86.858,86.825,3.82263877]
[1772594516918,3.77792106,86.856,86.825,3.82263877]
[1772594518522,11.51192054,86.867,86.831,3.82263877]
[1772594518725,15.2898416,86.867,86.831,3.82263877]
[1772594518908,3.77792106,86.864,86.833,3.82263877]
[1772594519217,11.5121165,86.865,86.833,3.82263877]
[1772594519218,3.77792106,86.859,86.833,3.82263877]
[1772594521202,11.51304427,86.858,86.833,3.82263877]
[1772594521406,3.77792106,86.857,86.833,3.82263877]
[1772594521816,11.51245226,86.863,86.835,3.82263877]
[1772594522126,49.72764473,86.893,86.834,11.51622636]
[1772594522127,11.50994977,86.882,86.85,5.46804132]
[1772594522439,3.77792106,86.899,86.861,3.82263877]
[1772594522607,15.28553334,86.899,86.861,3.82263877]
[1772594522810,11.50705055,86.904,86.871,3.82263877]
[1772594523134,9.24596238,86.9,86.871,3.82263877]
[1772594523537,20.75347473,86.9,86.872,3.82263877]
[1772594524213,11.5066755,86.907,86.872,3.82263877]
[1772594524616,11.5066755,86.907,86.872,11.51118887]
[1772594524822,9.24596238,86.88,86.841,3.82263877]
[1772594525409,11.51026139,86.879,86.842,11.51516547]
[1772594525632,11.51026139,86.879,86.843,3.82263877]
[1772594526430,11.51026139,86.879,86.85,5.46804132]
[1772594526630,11.51026139,86.879,86.851,3.82263877]
[1772594527128,9.24596238,86.88,86.851,3.82263877]
[1772594527333,11.50955389,86.885,86.851,3.82263877]
[1772594527738,3.77792106,86.907,86.87,5.46804132]
[1772594527922,11.50702383,86.904,86.871,3.82263877]
[1772594528115,3.77792106,86.907,86.871,3.82263877]
[1772594528316,11.50638428,86.909,86.881,3.82263877]
[1772594528846,5.46804132,86.92,86.891,3.82263877]
[1772594529413,15.28288545,86.919,86.891,3.82263877]
[1772594529751,5.46804132,86.91,86.871,3.82263877]
[1772594530237,3.77792106,86.909,86.871,3.82263877]
[1772594530438,9.24596238,86.9,86.871,3.82263877]
[1772594530639,3.77792106,86.899,86.871,3.82263877]
[1772594531440,3.77792106,86.899,86.862,3.82263877]
[1772594531838,11.5071824,86.903,86.871,3.82263877]
[1772594532540,3.77792106,86.899,86.863,3.82263877]
[1772594532739,3.77792106,86.889,86.82,61.2]
[1772594532923,3.77792106,86.879,86.831,0.14216157]
[1772594533124,3.77792106,86.879,86.831,0.28432314]
[1772594534030,9.24596238,86.9,86.86,5.46804132]
[1772594534229,3.77792106,86.899,86.86,5.46804132]
[1772594534727,3.77792106,86.899,86.861,3.82263877]
[1772594535244,3.77792106,86.899,86.832,40.30772064]
[1772594535245,3.77792106,86.908,86.871,3.82263877]
[1772594535651,46.01155013,86.935,86.85,5.46804132]
[1772594535652,3.77792106,86.949,86.891,3.82263877]
[1772594535823,3.77792106,86.949,86.892,3.82263877]
[1772594535824,3.77792106,86.929,86.892,3.82263877]
[1772594536026,3.77792106,86.909,86.872,11.51113158]
[1772594536324,3.77792106,86.899,86.862,11.51244379]
[1772594536728,3.77792106,86.899,86.862,15.33508256]
[1772594536938,3.77792106,86.889,86.853,3.82263877]
[1772594537818,3.77792106,86.879,86.845,11.51476467]
[1772594538018,3.77792106,86.879,86.842,3.82263877]
[1772594538019,3.72366757,86.849,86.822,3.82263877]
[1772594538741,5.46804132,86.84,86.812,3.78155999]
[1772594538944,3.72366757,86.849,86.81,5.46804132]
[1772594538945,3.72366757,86.849,86.814,3.78155999]
[1772594539243,11.51171892,86.868,86.831,3.78155999]
[1772594541024,11.51171892,86.868,86.83,5.46804132]
[1772594541025,15.33496601,86.868,86.833,3.77670243]
[1772594542239,5.46804132,86.87,86.833,3.77670243]
[1772594542429,5.46804132,86.87,86.832,11.51649161]
[1772594542430,11.51026139,86.879,86.841,3.77670243]
[1772594542946,15.33350848,86.879,86.843,3.77670243]
[1772594543122,11.51026139,86.879,86.843,3.77670243]
[1772594543324,3.82324709,86.878,86.843,3.77670243]
[1772594543720,3.82324709,86.878,86.85,5.46804132]
[1772594544323,3.82324709,86.887,86.851,3.77670243]
[1772594544525,3.82324709,86.886,86.851,3.77670243]
[1772594545237,3.82324709,86.879,86.843,11.51501228]
[1772594545436,3.82324709,86.879,86.85,5.46804132]
[1772594545631,5.46804132,86.88,86.843,40.30259446]
[1772594545632,11.50873762,86.891,86.861,3.77670243]
[1772594545943,3.82324709,86.889,86.851,3.77670243]
[1772594546145,5.46804132,86.88,86.851,3.77670243]
[1772594546345,3.82324709,86.879,86.851,3.77670243]
[1772594547933,11.51039388,86.878,86.851,3.77670243]
[1772594548441,28.76790467,86.903,86.853,3.77670243]
[1772594548650,3.82324709,86.889,86.853,3.77670243]
[1772594549344,3.82324709,86.899,86.87,5.46804132]
[1772594549552,3.82324709,86.909,86.871,3.77670243]
[1772594549740,5.46804132,86.91,86.881,3.77670243]
[1772594549939,11.50628818,86.909,86.881,15.28667669]
[1772594550944,3.82324709,86.924,86.891,3.77670243]
[1772594551534,3.82324709,86.909,86.88,5.46804132]
[1772594551739,3.82324709,86.909,86.881,11.50999643]
[1772594551940,3.82324709,86.917,86.882,3.77670243]
[1772594552430,3.82324709,86.917,86.884,3.77670243]
[1772594553135,11.50509675,86.918,86.858,11.51304427]
[1772594553136,3.82324709,86.913,86.858,11.51304427]
[1772594553356,3.82324709,86.889,86.858,11.51304427]
[1772594553966,3.82324709,86.889,86.85,5.46804132]
[1772594553967,3.82324709,86.888,86.85,5.46804132]
[1772594554135,3.82324709,86.879,86.84,16.98347093]
[1772594554338,5.46804132,86.88,86.841,3.77670243]
[1772594554533,5.46804132,86.89,86.851,3.77670243]
[1772594554758,3.82324709,86.879,86.842,3.77670243]
[1772594554950,3.82324709,86.859,86.835,11.51600586]
[1772594555144,3.82324709,86.869,86.841,3.77670243]
[1772594555347,3.82324709,86.879,86.841,3.77670243]
[1772594555656,9.29128841,86.87,86.841,3.77670243]
[1772594556057,15.33471889,86.87,86.842,11.51516547]
[1772594556267,5.46804132,86.88,86.851,3.77670243]
[1772594556468,9.29128841,86.89,86.851,3.77670243]
[1772594556764,20.80018135,86.89,86.851,3.77670243]
[1772594556968,3.69383402,86.914,86.842,40.30307915]
[1772594556969,11.50820238,86.895,86.861,3.77670243]
[1772594557258,5.46804132,86.89,86.861,3.77670243]
[1772594557477,3.82324709,86.894,86.861,3.77670243]
[1772594558546,3.82324709,86.894,86.862,11.5125141]
[1772594558747,11.50840689,86.893,86.862,11.5125141]
[1772594558966,11.50840689,86.893,86.862,15.28921653]
[1772594559262,5.45278565,86.89,86.862,15.28921653]
[1772594560044,3.82324709,86.893,86.863,3.77670243]
[1772594560441,28.76587795,86.909,86.862,11.5125141]
[1772594560442,3.82324709,86.902,86.872,11.51118887]
[1772594560650,3.82324709,86.902,86.873,3.77670243]
[1772594561357,11.50734744,86.901,86.873,3.77670243]
[1772594562339,5.45278565,86.9,86.872,11.51118887]
[1772594562545,3.82324709,86.899,86.872,11.51118887]
[1772594562748,11.50761228,86.899,86.873,3.77670243]
[1772594563763,3.82324709,86.906,86.874,11.51092386]
[1772594564271,3.82324709,86.906,86.846,61.2]
[1772594564272,3.82324709,86.899,86.856,3.77670243]
[1772594564455,3.82324709,86.899,86.86,9.22948808]
[1772594564884,3.82324709,86.889,86.851,15.29067463]
[1772594565355,3.82324709,86.889,86.852,3.77670243]
[1772594565954,3.82324709,86.887,86.854,3.77670243]
[1772594566576,3.82324709,86.887,86.853,11.51370706]
[1772594568152,3.93093285,86.879,86.83,28.79170694]
[1772594568357,40.28266923,86.886,86.83,28.79170694]
[1772594568358,3.93093285,86.869,86.832,3.62181232]
[1772594569243,3.93093285,86.869,86.84,5.45278565]
[1772594569965,3.93093285,86.868,86.841,11.51529807]
[1772594571453,3.93093285,86.868,86.842,3.62181232]
[1772594571962,15.44265177,86.868,86.842,3.62181232]
[1772594572355,3.93093285,86.867,86.841,11.51529807]
[1772594572868,3.93093285,86.867,86.836,11.51585506]
[1772594573867,3.93093285,86.859,86.831,11.51657535]
[1772594574963,3.93093285,86.857,86.83,5.45278565]
[1772594575171,3.93093285,86.857,86.826,11.51718095]
[1772594575770,3.93093285,86.849,86.821,11.51787607]
[1772594576483,3.93093285,86.839,86.811,11.51927751]
[1772594577061,3.93093285,86.839,86.802,3.62181232]
[1772594579171,15.44661739,86.839,86.803,11.52033915]
[1772594579365,3.93093285,86.848,86.811,3.62181232]
[1772594581269,3.93093285,86.867,86.83,5.45278565]
[1772594581572,3.93093285,86.859,86.831,11.51662424]
[1772594582071,3.93093285,86.839,86.804,3.62181232]
[1772594582272,3.93093285,86.839,86.806,11.51994101]
[1772594582964,3.93093285,86.839,86.785,3.69383402]
[1772594582965,3.93093285,86.819,86.784,11.52281507]
[1772594583670,3.93093285,86.819,86.765,3.69383402]
[1772594583671,3.93093285,86.809,86.761,32.43653685]
[1772594583873,3.93093285,86.799,86.761,32.43653685]
[1772594585176,16.97358143,86.8,86.745,3.69383402]
[1772594585177,5.45278565,86.82,86.781,3.62181232]
[1772594585768,5.45278565,86.81,86.781,3.62181232]
[1772594585972,5.45278565,86.8,86.77,3.72181232]
[1772594586455,5.45278565,86.79,86.77,0.1]
[1772594586658,5.45278565,86.8,86.77,0.1]
[1772594586974,11.52087005,86.799,86.77,0.1]
[1772594587178,3.93093285,86.798,86.77,0.1]
[1772594589282,57.58136722,86.834,86.77,0.1]
[1772594589283,3.93093285,86.806,86.771,3.62181232]
[1772594589787,3.93093285,86.805,86.771,3.62181232]
[1772594590094,3.93093285,86.815,86.781,3.62181232]
[1772594590391,3.93093285,86.809,86.781,3.62181232]
[1772594591490,3.93093285,86.809,86.782,11.52312691]
[1772594591791,3.93093285,86.809,86.782,15.14493923]
[1772594591993,9.3837185,86.83,86.791,3.62181232]
[1772594592165,3.93093285,86.839,86.801,3.62181232]
[1772594592369,3.93093285,86.829,86.79,5.45278565]
[1772594592568,3.93093285,86.819,86.782,15.14493923]
[1772594592963,3.93093285,86.809,86.782,3.62181232]
[1772594593178,3.93093285,86.809,86.777,15.14553223]
[1772594593383,11.51959482,86.809,86.777,15.14553223]
[1772594593588,3.93093285,86.808,86.777,15.14553223]
[1772594593795,3.93093285,86.808,86.778,3.62181232]
[1772594594468,3.93093285,86.806,86.771,15.14640002]
[1772594594668,3.93093285,86.806,86.772,3.62181232]
[1772594595884,11.52007372,86.805,86.774,3.62181232]
[1772594596396,15.45100657,86.805,86.774,3.62181232]